fUSD/lending_fUSD_20260408
["ID","MTS","AMOUNT","RATE_DAILY","PERIOD"]
[420092030,1775666244044,10000.01,8.422e-05,2]
[420092031,1775666244071,10000.01,8.422e-05,2]
[420092032,1775666244098,10000.01,8.422e-05,2]
[420092033,1775666244125,10000.01,8.422e-05,2]
[420092034,1775666244152,10000.01,8.422e-05,2]
[420092035,1775666244183,389.4790605,8.422e-05,2]
[420092036,1775666244217,81501.7117675,8.422e-05,2]
[420092037,1775666274350,4151.9571,8.422e-05,2]
[420092038,1775666281501,5848.0529,8.422e-05,2]
[420092039,1775666281525,10000.01,8.422e-05,2]
[420092040,1775666281557,28457.5778,8.422e-05,2]
[420092041,1775666312975,225.64,8.154e-05,3]
[420092042,1775666421635,564.66,8.477e-05,2]
[420092043,1775666464655,249.34,8.477e-05,2]
[420092044,1775666599266,-300.0,8.52e-05,2]
[420092045,1775666599301,-272.0,8.52e-05,2]
[420092046,1775666599344,-300.0,8.52e-05,2]
[420092047,1775666631972,7711.21,7.938e-05,2]
[420092048,1775666701112,200.0,8.52e-05,2]
[420092049,1775666701147,300.0,8.52e-05,2]
[420092050,1775666701179,300.0,8.52e-05,2]
[420092051,1775666701367,1200.0,8.52e-05,2]
[420092052,1775666703312,288.8,8.52e-05,2]
[420092053,1775666703337,11.2,8.52e-05,2]
[420092054,1775666786930,230.55,8.511e-05,2]
[420092055,1775666787679,281.78,8.514e-05,2]
[420092056,1775666814074,6506.4,8.521e-05,2]
[420092057,1775666821164,300.0,8.52e-05,2]
[420092058,1775666882242,300.0,8.52e-05,2]
[420092059,1775667032147,-5000.0,8.521e-05,2]
[420092061,1775667032158,-350.65047136,8.521e-05,2]
[420092062,1775667032167,-272.0,8.521e-05,2]
[420092063,1775667032177,-300.0,8.521e-05,2]
[420092064,1775667032186,-300.0,8.521e-05,2]
[420092065,1775667032195,-153.4513968,8.522e-05,2]
[420092066,1775667032205,-1000.0,8.522e-05,2]
[420092067,1775667032215,-1001.80981936,8.522e-05,2]
[420092068,1775667032224,-5000.0,8.524e-05,2]
[420092069,1775667032234,-150.0,8.534e-05,2]
[420092070,1775667032244,-2775.10094172,8.535e-05,2]
[420092071,1775667032377,-341.348914,8.535e-05,2]
[420092072,1775667032389,-910.90330755,8.535e-05,2]
[420092073,1775667032402,-1284.18884217,8.535e-05,2]
[420092074,1775667032415,-4989.94799456,8.535e-05,2]
[420092075,1775667032424,-2500.0,8.535e-05,2]
[420092076,1775667032435,-179.19,8.538e-05,2]
[420092077,1775667032445,-313.59,8.54e-05,2]
[420092078,1775667032455,-400.0,8.543e-05,2]
[420092079,1775667032464,-350.65047134,8.549e-05,2]
[420092080,1775667032475,-500.0,8.577e-05,2]
[420092081,1775667032485,-500.0,8.577e-05,2]
[420092082,1775667032495,-182.65387148,8.577e-05,2]
[420092083,1775667032505,-500.0,8.577e-05,2]
[420092084,1775667032514,-500.0,8.577e-05,2]
[420092085,1775667032524,-500.0,8.577e-05,2]
[420092086,1775667032534,-500.0,8.577e-05,2]
[420092087,1775667032544,-500.0,8.577e-05,2]
[420092088,1775667032554,-500.0,8.577e-05,2]
[420092089,1775667032564,-500.0,8.577e-05,2]
[420092090,1775667032574,-500.0,8.577e-05,2]
[420092091,1775667032584,-500.0,8.577e-05,2]
[420092092,1775667032594,-500.0,8.577e-05,2]
[420092102,1775667032989,-500.0,8.577e-05,2]
[420092103,1775667033009,-500.0,8.577e-05,2]
[420092104,1775667033020,-500.0,8.577e-05,2]
[420092105,1775667033030,-500.0,8.577e-05,2]
[420092106,1775667033041,-500.0,8.577e-05,2]
[420092107,1775667033051,-500.0,8.577e-05,2]
[420092108,1775667033060,-500.0,8.577e-05,2]
[420092109,1775667033071,-500.0,8.577e-05,2]
[420092110,1775667033081,-500.0,8.577e-05,2]
[420092111,1775667033090,-500.0,8.577e-05,2]
[420092112,1775667033100,-500.0,8.577e-05,2]
[420092113,1775667033110,-500.0,8.577e-05,2]
[420092114,1775667033120,-500.0,8.577e-05,2]
[420092115,1775667033129,-228.13558442,8.577e-05,2]
[420092116,1775667033259,-271.86441558,8.577e-05,2]
[420092117,1775667033270,-241.03643608,8.577e-05,2]
[420092120,1775667038593,-258.96356392,8.577e-05,2]
[420092121,1775667038633,-500.0,8.577e-05,2]
[420092122,1775667038670,-500.0,8.577e-05,2]
[420092123,1775667038707,-500.0,8.577e-05,2]
[420092124,1775667038743,-618.56713956,8.577e-05,2]
[420092125,1775667038778,-500.0,8.577e-05,2]
[420092126,1775667038813,-500.0,8.577e-05,2]
[420092127,1775667038848,-500.0,8.577e-05,2]
[420092128,1775667038883,-500.0,8.577e-05,2]
[420092129,1775667038919,-500.0,8.577e-05,2]
[420092130,1775667039037,-500.0,8.577e-05,2]
[420092131,1775667039074,-500.0,8.577e-05,2]
[420092132,1775667039111,-500.0,8.577e-05,2]
[420092133,1775667039147,-500.0,8.577e-05,2]
[420092134,1775667039182,-369.89927146,8.577e-05,2]
[420092135,1775667039216,-500.0,8.577e-05,2]
[420092136,1775667039252,-500.0,8.577e-05,2]
[420092137,1775667039286,-500.0,8.577e-05,2]
[420092138,1775667039337,-500.0,8.577e-05,2]
[420092139,1775667039380,-500.0,8.577e-05,2]
[420092140,1775667039440,-500.0,8.577e-05,2]
[420092141,1775667039477,-500.0,8.577e-05,2]
[420092142,1775667039517,-500.0,8.577e-05,2]
[420092143,1775667039560,-500.0,8.577e-05,2]
[420092144,1775667039597,-500.0,8.577e-05,2]
[420092145,1775667039635,-500.0,8.577e-05,2]
[420092146,1775667039671,-500.0,8.577e-05,2]
[420092147,1775667039707,-500.0,8.577e-05,2]
[420092148,1775667039744,-500.0,8.577e-05,2]
[420092149,1775667039781,-500.0,8.577e-05,2]
[420092150,1775667039836,-0.02,8.577e-05,2]
[420092151,1775667039876,-0.04,8.577e-05,2]
[420092152,1775667039890,-9999.93,8.577e-05,2]
[420092153,1775667039901,-500.0,8.577e-05,2]
[420092154,1775667039911,-500.0,8.577e-05,2]
[420092155,1775667039920,-500.0,8.577e-05,2]
[420092156,1775667039936,-500.0,8.577e-05,2]
[420092157,1775667039946,-250.0,8.577e-05,2]
[420092158,1775667039957,-500.0,8.577e-05,2]
[420092159,1775667039967,-500.0,8.577e-05,2]
[420092160,1775667039977,-500.0,8.577e-05,2]
[420092161,1775667039988,-350.65047134,8.577e-05,2]
[420092162,1775667039999,-206.54347383,8.577e-05,2]
[420092163,1775667040009,-348.00920513,8.577e-05,2]
[420092164,1775667040019,-500.0,8.577e-05,2]
[420092165,1775667040030,-341.50073366,8.577e-05,2]
[420092166,1775667040040,-9561.15,8.578e-05,2]
[420092167,1775667040050,-2309.13708127,8.578e-05,2]
[420092178,1775667042053,-41110.11291873,8.578e-05,2]
[420092179,1775667042063,-150.99,8.578e-05,2]
[420092180,1775667042073,-9999.99,8.578e-05,2]
[420092181,1775667042084,-499.99,8.578e-05,2]
[420092182,1775667042094,-1575.11,8.578e-05,2]
[420092183,1775667042104,-299.99,8.578e-05,2]
[420092184,1775667042113,-9999.99,8.578e-05,2]
[420092185,1775667042123,-4522.12,8.578e-05,2]
[420092186,1775667042132,-999.99,8.578e-05,2]
[420092187,1775667042142,-9999.99,8.578e-05,2]
[420092188,1775667042151,-150.99,8.578e-05,2]
[420092189,1775667042160,-1571.58,8.578e-05,2]
[420092190,1775667042170,-6973.65446272,8.578e-05,2]
[420092191,1775667042180,-9233.8808851,8.58e-05,2]
[420092192,1775667042193,-1710.1591149,8.58e-05,2]
[420092193,1775667042203,-35559.00736752,8.58e-05,2]
[420092194,1775667042402,-19468.68671659,8.58e-05,2]
[420092195,1775667042415,-469.10245822,8.58e-05,2]
[420092207,1775667043649,-21843.75399247,8.58e-05,2]
[420092208,1775667043660,-500.0,8.613e-05,2]
[420092209,1775667043671,-389.0016983,8.613e-05,2]
[420092210,1775667043681,-500.0,8.613e-05,2]
[420092211,1775667043692,-500.0,8.613e-05,2]
[420092212,1775667043702,-500.0,8.613e-05,2]
[420092213,1775667043713,-500.0,8.613e-05,2]
[420092214,1775667043724,-294.97396364,8.633e-05,2]
[420092215,1775667043735,-197.51949262,8.634e-05,2]
[420092216,1775667043745,-500.0,8.634e-05,2]
[420092217,1775667043756,-386.8288868,8.634e-05,2]
[420092218,1775667043767,-500.0,8.634e-05,2]
[420092219,1775667043778,-500.0,8.634e-05,2]
[420092220,1775667043788,-500.0,8.634e-05,2]
[420092221,1775667043799,-500.0,8.634e-05,2]
[420092222,1775667043809,-500.0,8.634e-05,2]
[420092223,1775667043820,-195.7978643,8.634e-05,2]
[420092224,1775667043830,-500.0,8.634e-05,2]
[420092225,1775667043840,-471.01622986,8.634e-05,2]
[420092226,1775667043850,-500.0,8.634e-05,2]
[420092227,1775667043860,-500.0,8.634e-05,2]
[420092228,1775667043870,-500.0,8.634e-05,2]
[420092229,1775667043881,-2091.35,8.635e-05,2]
[420092230,1775667043892,-190524.3231819,8.635e-05,2]
[420092231,1775667043940,-53.47243778,8.635e-05,2]
[420092234,1775667046916,-6537.3187629,8.635e-05,2]
[420092235,1775667046928,-15560.062563,8.635e-05,2]
[420092236,1775667046940,-349.77448178,8.635e-05,2]
[420092237,1775667046959,-1022.79832148,8.635e-05,2]
[420092238,1775667046971,-954.67114887,8.635e-05,2]
[420092239,1775667046983,-999.4796696,8.635e-05,2]
[420092240,1775667061169,300.0,8.634e-05,2]
[420092241,1775667061822,150.0,8.634e-05,2]
[420092242,1775667067219,1094.2927,8.478e-05,2]
[420092243,1775667070200,168.232854,8.632e-05,2]
[420092244,1775667073294,8287.484446,8.478e-05,2]
[420092245,1775667073709,1712.525554,8.478e-05,2]
[420092246,1775667076438,-1283998.09943269,8.635e-05,2]
[420092247,1775667076469,-716001.90056731,8.635e-05,2]
[420092248,1775667088837,6866.959,8.462e-05,2]
[420092249,1775667088965,329.978,8.462e-05,2]
[420092250,1775667121170,300.0,8.634e-05,2]
[420092251,1775667137594,790.547446,8.632e-05,2]
[420092252,1775667137618,10000.01,8.632e-05,2]
[420092253,1775667137641,10000.01,8.632e-05,2]
[420092254,1775667137666,3292.9865215,8.632e-05,2]
[420092255,1775667148891,6707.0234785,8.555e-05,2]
[420092256,1775667148917,92.40957253,8.555e-05,2]
[420092257,1775667148949,2681.52205736,8.555e-05,2]
[420092258,1775667148981,7226.07837011,8.555e-05,2]
[420092259,1775667149005,218.54457281,8.555e-05,2]
[420092260,1775667149044,1048.27959911,8.555e-05,2]
[420092261,1775667177417,8733.18582808,8.632e-05,2]
[420092262,1775667177442,10000.01,8.632e-05,2]
[420092263,1775667177467,10000.01,8.632e-05,2]
[420092264,1775667177493,10000.01,8.632e-05,2]
[420092265,1775667177518,10000.01,8.632e-05,2]
[420092266,1775667177544,10000.01,8.632e-05,2]
[420092267,1775667177569,10000.01,8.632e-05,2]
[420092268,1775667177593,10000.01,8.632e-05,2]
[420092269,1775667177617,10000.01,8.632e-05,2]
[420092270,1775667177641,10000.01,8.632e-05,2]
[420092271,1775667235044,10000.01,8.532e-05,2]
[420092272,1775667240920,2500.0,8.532e-05,2]
[420092274,1775667278891,7500.01,8.532e-05,2]
[420092275,1775667278919,10000.01,8.532e-05,2]
[420092276,1775667278944,10000.01,8.532e-05,2]
[420092277,1775667278971,10000.01,8.532e-05,2]
[420092278,1775667278995,10000.01,8.532e-05,2]
[420092279,1775667279020,10000.01,8.532e-05,2]
[420092280,1775667279048,10000.01,8.532e-05,2]
[420092281,1775667279075,10000.01,8.532e-05,2]
[420092282,1775667279100,10000.01,8.532e-05,2]
[420092283,1775667279126,10000.01,8.532e-05,2]
[420092284,1775667295726,253.99,8.33e-05,2]
[420092285,1775667301251,-300.0,8.531e-05,2]
[420092286,1775667301282,-300.0,8.531e-05,2]
[420092287,1775667301336,1200.0,8.531e-05,2]
[420092288,1775667301986,272.0,8.532e-05,2]
[420092289,1775667350817,1000.0,8.219e-05,2]
[420092290,1775667350841,1000.0,8.219e-05,2]
[420092291,1775667360885,6328.01,8.532e-05,2]
[420092292,1775667360910,3671.99,8.532e-05,2]
[420092293,1775667361328,300.0,8.531e-05,2]
[420092294,1775667367706,-272.0,8.532e-05,2]
[420092295,1775667367808,-0.01,8.532e-05,2]
[420092296,1775667367955,-0.02,8.532e-05,2]
[420092297,1775667368091,-0.04,8.532e-05,2]
[420092298,1775667368218,-0.08,8.532e-05,2]
[420092299,1775667368331,-0.16,8.532e-05,2]
[420092300,1775667368486,-0.32,8.532e-05,2]
[420092301,1775667370732,-0.64,8.532e-05,2]
[420092302,1775667370908,-1.28,8.532e-05,2]
[420092303,1775667371022,-2.56,8.532e-05,2]
[420092304,1775667371128,-5.12,8.532e-05,2]
[420092305,1775667371269,-10.24,8.532e-05,2]
[420092306,1775667371563,-20.48,8.532e-05,2]
[420092307,1775667371643,-40.96,8.532e-05,2]
[420092308,1775667373763,-81.92,8.532e-05,2]
[420092309,1775667375590,-163.84,8.532e-05,2]
[420092310,1775667375679,-327.68,8.532e-05,2]
[420092311,1775667375788,-655.36,8.532e-05,2]
[420092312,1775667375857,-1310.72,8.532e-05,2]
[420092313,1775667375926,-2621.44,8.532e-05,2]
[420092314,1775667376027,-4757.13,8.532e-05,2]
[420092315,1775667377144,-5441.0827722,8.532e-05,2]
[420092316,1775667377250,-10000.01,8.532e-05,2]
[420092317,1775667380048,-10000.01,8.532e-05,2]
[420092318,1775667380074,-10000.01,8.532e-05,2]
[420092319,1775667380118,-10000.01,8.532e-05,2]
[420092320,1775667380381,-10000.01,8.532e-05,2]
[420092321,1775667384203,500.0,8.239e-05,2]
[420092322,1775667387292,10000.0,8.515e-05,2]
[420092323,1775667398755,2513.234261,8.178e-05,2]
[420092324,1775667403231,10000.0,8.515e-05,2]
[420092325,1775667407353,200.0,8.5e-05,2]
[420092326,1775667417845,4289.57922806,8.432e-05,2]
[420092327,1775667424396,5460.0,8.515e-05,2]
[420092328,1775667428345,558.338994,7.945e-05,2]
[420092329,1775667437512,1205.13,8.034e-05,2]
[420092330,1775667451876,6901.79,8.219e-05,2]
[420092331,1775667477406,200.0,8.4e-05,2]
[420092332,1775667501706,500.0,8.066e-05,2]
[420092333,1775667520125,1600.0,8.034e-05,2]
[420092334,1775667559242,1000.0,8.377e-05,2]
[420092335,1775667559284,1000.0,8.354e-05,2]
[420092336,1775667559472,1000.0,8.404e-05,2]
[420092338,1775667685553,399.45,8.504e-05,2]
[420092339,1775667688878,7037.535,8.361e-05,2]
[420092340,1775667688967,344.808,8.361e-05,2]
[420092341,1775667696552,1500.0,8.432e-05,2]
[420092342,1775667704472,200.0,7.82e-05,2]
[420092344,1775667919460,211.1,7.825e-05,2]
[420092345,1775667979993,172.0,6.291e-05,2]
[420092346,1775667980217,135.117,7.078e-05,2]
[420092347,1775667980240,36.883,7.078e-05,2]
[420092348,1775667980451,172.0,7.864e-05,2]
[420092349,1775668004835,1852.42,7.851e-05,2]
[420092350,1775668021715,7938.707,8.43e-05,2]
[420092351,1775668021744,10000.01,8.43e-05,2]
[420092352,1775668021774,2912.8558,8.43e-05,2]
[420092353,1775668040440,410.3175,8.429e-05,2]
[420092354,1775668061000,9589.6925,8e-05,2]
[420092355,1775668061024,2382.08592056,8e-05,2]
[420092356,1775668076791,344.351,8.43e-05,2]
[420092357,1775668080221,250.0,8.178e-05,2]
[420092358,1775668082643,5491.0,8.493e-05,2]
[420092359,1775668087724,1532.57307944,7.945e-05,2]
[420092360,1775668087748,6902.27009156,7.945e-05,2]
[420092361,1775668108889,-300.0,8.527e-05,2]
[420092362,1775668108936,272.0,8.527e-05,2]
[420092363,1775668112319,-500.0,8.527e-05,2]
[420092364,1775668112351,-500.0,8.527e-05,2]
[420092365,1775668112383,-500.0,8.527e-05,2]
[420092366,1775668112416,-500.0,8.527e-05,2]
[420092367,1775668112454,-500.0,8.527e-05,2]
[420092368,1775668112486,-500.0,8.527e-05,2]
[420092369,1775668112517,-489.37632167,8.527e-05,2]
[420092370,1775668112548,-500.0,8.527e-05,2]
[420092371,1775668112585,-500.0,8.527e-05,2]
[420092372,1775668112617,-180.9569223,8.527e-05,2]
[420092373,1775668112647,-159.34351206,8.527e-05,2]
[420092374,1775668112927,-340.65648794,8.527e-05,2]
[420092375,1775668112961,-500.0,8.527e-05,2]
[420092376,1775668112991,-500.0,8.527e-05,2]
[420092377,1775668113030,-500.0,8.527e-05,2]
[420092378,1775668113061,-500.0,8.527e-05,2]
[420092379,1775668113093,-479.496359,8.527e-05,2]
[420092380,1775668113124,-281.41938346,8.527e-05,2]
[420092381,1775668113154,-500.0,8.527e-05,2]
[420092382,1775668113187,-500.0,8.527e-05,2]
[420092383,1775668113217,-500.0,8.527e-05,2]
[420092384,1775668113248,-296.8655392,8.527e-05,2]
[420092385,1775668113625,-203.1344608,8.527e-05,2]
[420092386,1775668113656,-500.0,8.527e-05,2]
[420092387,1775668113687,-500.0,8.527e-05,2]
[420092388,1775668114039,-500.0,8.527e-05,2]
[420092389,1775668114070,-500.0,8.527e-05,2]
[420092390,1775668114107,-500.0,8.527e-05,2]
[420092391,1775668114145,-500.0,8.527e-05,2]
[420092392,1775668114181,-500.0,8.527e-05,2]
[420092393,1775668114217,-500.0,8.527e-05,2]
[420092394,1775668114253,-500.0,8.527e-05,2]
[420092395,1775668114291,-93.7410784,8.527e-05,2]
[420092396,1775668114400,-406.2589216,8.527e-05,2]
[420092397,1775668114440,-500.0,8.527e-05,2]
[420092398,1775668114477,-500.0,8.527e-05,2]
[420092399,1775668114515,-500.0,8.527e-05,2]
[420092400,1775668114554,-500.0,8.527e-05,2]
[420092401,1775668114594,-500.0,8.527e-05,2]
[420092402,1775668114632,-500.0,8.527e-05,2]
[420092403,1775668114672,-500.0,8.527e-05,2]
[420092404,1775668114711,-500.0,8.527e-05,2]
[420092405,1775668114749,-500.0,8.527e-05,2]
[420092406,1775668114978,-500.0,8.527e-05,2]
[420092407,1775668115015,-500.0,8.527e-05,2]
[420092408,1775668115047,-300.0,8.528e-05,2]
[420092409,1775668115081,-1200.0,8.528e-05,2]
[420092410,1775668115113,-150.0,8.528e-05,2]
[420092411,1775668115143,-300.0,8.528e-05,2]
[420092412,1775668115176,-265.12737532,8.528e-05,2]
[420092413,1775668115323,500.0,8.527e-05,2]
[420092414,1775668115481,500.0,8.527e-05,2]
[420092415,1775668115559,500.0,8.527e-05,2]
[420092416,1775668115647,500.0,8.527e-05,2]
[420092417,1775668115694,500.0,8.527e-05,2]
[420092418,1775668115747,500.0,8.527e-05,2]
[420092419,1775668115810,500.0,8.527e-05,2]
[420092420,1775668127386,-5000.0,8.528e-05,2]
[420092421,1775668135737,0.01,8.527e-05,2]
[420092422,1775668135761,499.99,8.527e-05,2]
[420092423,1775668135791,500.0,8.527e-05,2]
[420092424,1775668135823,644.66933687,8.527e-05,2]
[420092425,1775668136001,500.0,8.527e-05,2]
[420092426,1775668136050,500.0,8.527e-05,2]
[420092427,1775668136110,500.0,8.527e-05,2]
[420092428,1775668136163,500.0,8.527e-05,2]
[420092429,1775668136213,363.33909566,8.527e-05,2]
[420092430,1775668141391,1025.83877739,8.527e-05,2]
[420092431,1775668141447,1025.83877739,8.527e-05,2]
[420092432,1775668141493,1025.83877739,8.527e-05,2]
[420092433,1775668141535,1025.83877739,8.527e-05,2]
[420092434,1775668141596,1025.83877739,8.527e-05,2]
[420092435,1775668141639,862.81768052,8.527e-05,2]
[420092436,1775668141673,163.02109687,8.527e-05,2]
[420092437,1775668141720,1025.83877739,8.527e-05,2]
[420092438,1775668141763,1025.83877739,8.527e-05,2]
[420092439,1775668141810,1025.83877739,8.527e-05,2]
[420092440,1775668141856,1025.83877739,8.527e-05,2]
[420092441,1775668141916,1025.83877739,8.527e-05,2]
[420092442,1775668141987,1025.83877739,8.527e-05,2]
[420092443,1775668143907,1025.83877739,8.527e-05,2]
[420092444,1775668144025,1025.83877739,8.527e-05,2]
[420092445,1775668144072,1025.83877739,8.527e-05,2]
[420092446,1775668144111,604.43990662,8.527e-05,2]
[420092447,1775668144141,421.39887077,8.527e-05,2]
[420092448,1775668144193,1025.83877739,8.527e-05,2]
[420092449,1775668144232,1025.83877739,8.527e-05,2]
[420092450,1775668144273,1025.83877739,8.527e-05,2]
[420092451,1775668144319,1025.83877739,8.527e-05,2]
[420092452,1775668144360,1025.83877739,8.527e-05,2]
[420092453,1775668144418,1025.83877739,8.527e-05,2]
[420092454,1775668144472,1025.83877739,8.527e-05,2]
[420092455,1775668144511,1025.83877739,8.527e-05,2]
[420092456,1775668144550,1025.83877739,8.527e-05,2]
[420092457,1775668144606,346.06213272,8.527e-05,2]
[420092458,1775668144639,679.77664467,8.527e-05,2]
[420092459,1775668144678,1025.83877739,8.527e-05,2]
[420092460,1775668144732,1025.83877739,8.527e-05,2]
[420092461,1775668144778,1025.83877739,8.527e-05,2]
[420092462,1775668144830,1025.83877739,8.527e-05,2]
[420092463,1775668144870,1025.83877739,8.527e-05,2]
[420092464,1775668144929,1025.83877739,8.527e-05,2]
[420092465,1775668144995,1025.83877739,8.527e-05,2]
[420092466,1775668145074,1025.83877739,8.527e-05,2]
[420092467,1775668145121,1025.83877739,8.527e-05,2]
[420092468,1775668145175,1025.83877739,8.527e-05,2]
[420092469,1775668145218,1025.83877739,8.527e-05,2]
[420092470,1775668145261,1025.83877739,8.527e-05,2]
[420092471,1775668145318,1025.83877739,8.527e-05,2]
[420092472,1775668145384,1025.83877739,8.527e-05,2]
[420092473,1775668145435,767.46100349,8.527e-05,2]
[420092474,1775668145467,258.3777739,8.527e-05,2]
[420092475,1775668145509,1025.83877739,8.527e-05,2]
[420092476,1775668145565,1025.83877739,8.527e-05,2]
[420092477,1775668145616,1025.83877739,8.527e-05,2]
[420092478,1775668148871,1200.0,8.526e-05,2]
[420092479,1775668170245,-250.0,8.529e-05,2]
[420092480,1775668170272,-265.12737532,8.529e-05,2]
[420092481,1775668170295,-5000.0,8.529e-05,2]
[420092482,1775668170318,-265.12737532,8.529e-05,2]
[420092483,1775668170342,-300.0,8.53e-05,2]
[420092484,1775668170365,-300.0,8.53e-05,2]
[420092485,1775668170391,-150.0,8.531e-05,2]
[420092486,1775668170416,-574.04550142,8.531e-05,2]
[420092487,1775668170443,-113.30194394,8.531e-05,2]
[420092488,1775668170496,272.0,8.528e-05,2]
[420092489,1775668171448,3913.3712,8.43e-05,2]
[420092490,1775668183864,1806.6388,8.43e-05,2]
[420092491,1775668206237,-150.0,8.52e-05,2]
[420092495,1775668231533,-256.99613997,8.531e-05,2]
[420092496,1775668231546,-671.18141117,8.531e-05,2]
[420092497,1775668231559,-271.82244886,8.531e-05,2]
[420092498,1775668231569,-300.0,8.531e-05,2]
[420092499,1775668231580,-299.99,8.532e-05,2]
[420092500,1775668231590,-9999.99,8.532e-05,2]
[420092501,1775668231599,-150.99,8.532e-05,2]
[420092502,1775668231610,-150.99,8.532e-05,2]
[420092503,1775668231620,-9999.99,8.532e-05,2]
[420092504,1775668231631,-2459.93,8.532e-05,2]
[420092505,1775668231641,-40760.83,8.532e-05,2]
[420092506,1775668231651,-9999.99,8.532e-05,2]
[420092507,1775668231662,-5383.62,8.532e-05,2]
[420092508,1775668231672,-999.99,8.532e-05,2]
[420092509,1775668231683,-11403.71,8.532e-05,2]
[420092510,1775668231695,-253418.6835941,8.532e-05,2]
[420092511,1775668231708,-90648.82359888,8.532e-05,2]
[420092512,1775668231721,-219446.95510715,8.532e-05,2]
[420092513,1775668231836,-829.38668649,8.532e-05,2]
[420092526,1775668237850,-272.0,8.532e-05,2]
[420092527,1775668237860,-782714.91824118,8.532e-05,2]
[420092528,1775668237869,-500.0,8.532e-05,2]
[420092529,1775668237878,-1098884.71031146,8.532e-05,2]
[420092532,1775668238674,3409.396,8.43e-05,2]
[420092534,1775668239894,-547.85728434,8.532e-05,2]
[420092535,1775668239906,-715.9,8.532e-05,2]
[420092536,1775668240682,-358.60529582,8.532e-05,2]
[420092539,1775668242649,-203460.27953614,8.532e-05,2]
[420092540,1775668242778,-16068.75668995,8.532e-05,2]
[420092541,1775668242903,-2606.19276221,8.532e-05,2]
[420092542,1775668242915,-1128.94051916,8.532e-05,2]
[420092600,1775668248101,-2392.81052465,8.532e-05,2]
[420092601,1775668248114,-3643.30065899,8.532e-05,2]
[420092602,1775668265077,166.66,8.46e-05,2]
[420092606,1775668333778,1848.33,4.106e-05,2]
[420092607,1775668334105,1848.33,4.322e-05,2]
[420092608,1775668334322,1848.33,4.538e-05,2]
[420092609,1775668334539,878.964,4.754e-05,2]
[420092610,1775668334564,969.366,4.754e-05,2]
[420092611,1775668334747,1848.33,4.97e-05,2]
[420092612,1775668334996,1848.33,5.186e-05,2]
[420092613,1775668335203,1848.33,5.403e-05,2]
[420092614,1775668335452,1848.33,5.619e-05,2]
[420092615,1775668335719,1637.324,5.835e-05,2]
[420092616,1775668335744,211.006,5.835e-05,2]
[420092617,1775668335931,1848.33,6.051e-05,2]
[420092618,1775668336355,1848.33,6.267e-05,2]
[420092619,1775668336559,1848.33,6.483e-05,2]
[420092620,1775668336991,1848.33,6.699e-05,2]
[420092621,1775668337216,1848.33,6.915e-05,2]
[420092622,1775668337639,547.354,7.131e-05,2]
[420092623,1775668337665,1300.976,7.131e-05,2]
[420092624,1775668337900,1848.33,7.348e-05,2]
[420092625,1775668338081,1848.33,7.564e-05,2]
[420092626,1775668338287,1848.33,7.78e-05,2]
[420092627,1775668338706,1848.33,7.996e-05,2]
[420092628,1775668340365,1305.714,8.212e-05,2]
[420092629,1775668340390,542.616,8.212e-05,2]
[420092632,1775668376250,3651.801621,8.178e-05,2]
[420092633,1775668401603,3021.6751,8.432e-05,2]
[420092634,1775668406807,160.46055602,8.52e-05,2]
[420092635,1775668433237,1230.82,7.849e-05,2]
[420092636,1775668463615,179.0,6.756e-05,2]
[420092637,1775668463915,177.0,6.756e-05,2]
[420092638,1775668464162,177.0,6.756e-05,2]
[420092639,1775668464434,177.0,6.756e-05,2]
[420092640,1775668465371,254.0,6.756e-05,2]
[420092641,1775668502407,180.26,8.219e-05,2]
[420092645,1775668606902,248.37672298,8.431e-05,2]
[420092646,1775668606930,10000.01,8.431e-05,2]
[420092647,1775668606958,10000.01,8.431e-05,2]
[420092648,1775668606985,10000.01,8.431e-05,2]
[420092649,1775668607012,10000.01,8.431e-05,2]
[420092650,1775668607040,10000.01,8.431e-05,2]
[420092651,1775668607068,10000.01,8.431e-05,2]
[420092652,1775668607093,10000.01,8.431e-05,2]